fUST/lending_fUST_20251014
["ID","MTS","AMOUNT","RATE_DAILY","PERIOD"]
[391156782,1760401845278,-1301.16,0.00021917,2]
[391156784,1760401845288,-1301.16,0.00021917,2]
[391156786,1760401845297,-877.61,0.00021917,2]
[391156787,1760401845306,-1301.16,0.00021917,2]
[391156790,1760401845315,-1301.16,0.00021917,2]
[391156791,1760401845326,-1301.16,0.00021917,2]
[391156793,1760401845335,-1301.16,0.00021917,2]
[391156796,1760401845344,-1301.16,0.00021917,2]
[391156797,1760401845354,-1301.16,0.00021917,2]
[391156799,1760401845363,-1301.16,0.00021917,2]
[391156801,1760401845372,-1301.16,0.00021917,2]
[391156802,1760401845381,-500.0,0.00021917,2]
[391156803,1760401845393,-1301.16,0.00021917,2]
[391156804,1760401845402,-1301.16,0.00021917,2]
[391156805,1760401845411,-1301.16,0.00021917,2]
[391156806,1760401845421,-1301.16,0.00021917,2]
[391156807,1760401845431,-1301.16,0.00021917,2]
[391156808,1760401845440,-1301.16,0.00021917,2]
[391156809,1760401845450,-1301.16,0.00021917,2]
[391156810,1760401845460,-1301.16,0.00021917,2]
[391156811,1760401845470,-1301.16,0.00021917,2]
[391156812,1760401845479,-1301.16,0.00021917,2]
[391156813,1760401845489,-1301.16,0.00021917,2]
[391156814,1760401845498,-1301.16,0.00021917,2]
[391156815,1760401845507,-1301.16,0.00021917,2]
[391156817,1760401845516,-877.61,0.00021917,2]
[391156818,1760401845525,-1301.24545451,0.00021917,2]
[391156819,1760401845534,-877.61,0.00021917,2]
[391156820,1760401845543,-500.0,0.00021917,2]
[391156821,1760401845552,-215.41,0.00021917,2]
[391156822,1760401845561,-500.0,0.00021917,2]
[391156823,1760401845570,-500.0,0.00021917,2]
[391156824,1760401845579,-567.4,0.00021917,2]
[391156825,1760401845588,-877.61,0.00021917,2]
[391156826,1760401845598,-877.61,0.00021917,2]
[391156827,1760401845607,-877.61,0.00021917,2]
[391156828,1760401845616,-877.61,0.00021917,2]
[391156829,1760401845625,-877.61,0.00021917,2]
[391156830,1760401845634,-500.0,0.00021917,2]
[391156831,1760401845644,-877.61,0.00021917,2]
[391156832,1760401845653,-500.0,0.00021917,2]
[391156834,1760401845663,-877.61,0.00021917,2]
[391156835,1760401845673,-500.0,0.00021917,2]
[391156837,1760401845682,-877.61,0.00021917,2]
[391156839,1760401845691,-877.61,0.00021917,2]
[391156841,1760401845701,-877.61,0.00021917,2]
[391156843,1760401845710,-877.61,0.00021917,2]
[391156845,1760401845721,-877.61,0.00021917,2]
[391156847,1760401845730,-877.84,0.00021917,2]
[391156849,1760401845740,-500.0,0.00021917,2]
[391156851,1760401845750,-500.0,0.00021917,2]
[391156853,1760401845769,-500.0,0.00021917,2]
[391156855,1760401845789,-500.0,0.00021917,2]
[391156857,1760401845810,-500.0,0.00021917,2]
[391156859,1760401845825,-500.0,0.00021917,2]
[391156861,1760401845835,-500.0,0.00021917,2]
[391156863,1760401845845,-500.0,0.00021917,2]
[391156865,1760401845855,-500.0,0.00021917,2]
[391156867,1760401845865,-582.87253596,0.00021917,2]
[391156869,1760401845874,-500.0,0.00021917,2]
[391156871,1760401845883,-500.0,0.00021973,2]
[391156873,1760401845893,-500.0,0.00021973,2]
[391156875,1760401845903,-500.0,0.00021973,2]
[391156877,1760401845913,-570.57923767,0.00021973,2]
[391156879,1760401845922,-500.0,0.00021973,2]
[391156881,1760401845931,-500.0,0.00021973,2]
[391156883,1760401845941,-500.0,0.00021973,2]
[391156885,1760401845950,-500.0,0.00021973,2]
[391156887,1760401845959,-500.0,0.00021973,2]
[391156889,1760401845968,-500.0,0.00021973,2]
[391156891,1760401845977,-500.0,0.00021973,2]
[391156893,1760401845986,-500.0,0.00021973,2]
[391156895,1760401845995,-500.0,0.00021973,2]
[391156897,1760401846004,-500.0,0.00021973,2]
[391156899,1760401846014,-502.76423458,0.00021999,2]
[391156901,1760401846025,-522.49617789,0.00021999,2]
[391156903,1760401846034,-500.98477945,0.00021999,2]
[391156905,1760401846044,-4148.87382076,0.00022,7]
[391156907,1760401846053,-11767.3960829,0.00022,2]
[391156909,1760401846062,-500.0,0.00022047,2]
[391156910,1760401846072,-500.13300599,0.00022073,2]
[391156912,1760401846081,-249.70228567,0.00022073,2]
[391156914,1760401846091,-500.0,0.00022073,2]
[391156916,1760401846100,-500.0,0.00022073,2]
[391156918,1760401846110,-500.0,0.00022073,2]
[391156920,1760401846119,-500.0,0.00022073,2]
[391156922,1760401846128,-500.0,0.00022073,2]
[391156924,1760401846139,-500.0,0.00022073,2]
[391156926,1760401846148,-500.0,0.00022073,2]
[391156928,1760401846158,-500.0,0.00022073,2]
[391156930,1760401846166,-500.0,0.00022073,2]
[391156932,1760401846176,-500.0,0.00022073,2]
[391156934,1760401846190,-151.0,0.00022089,7]
[391156937,1760401846201,-151.0,0.00022089,7]
[391156939,1760401846210,-151.0,0.00022089,7]
[391156941,1760401846220,-268.873279,0.00022089,7]
[391156943,1760401846232,-151.0,0.00022089,7]
[391156945,1760401846242,-151.0,0.00022089,7]
[391156947,1760401846253,-151.0,0.00022089,7]
[391156949,1760401846264,-151.0,0.00022089,7]
[391156951,1760401846273,-151.0,0.00022089,2]
[391156953,1760401846282,-151.0,0.00022089,7]
[391156955,1760401846291,-151.0,0.00022089,7]
[391156957,1760401846300,-151.0,0.00022089,7]
[391156958,1760401846309,-151.0,0.00022089,7]
[391156960,1760401846319,-151.0,0.00022089,7]
[391156962,1760401846329,-153.964798,0.00022089,7]
[391156964,1760401846338,-151.0,0.00022089,7]
[391156966,1760401846348,-151.0,0.00022089,7]
[391156968,1760401846357,-151.0,0.00022089,7]
[391156970,1760401846366,-151.0,0.00022089,7]
[391156972,1760401846375,-151.0,0.00022089,7]
[391156974,1760401846385,-151.0,0.00022089,7]
[391156976,1760401846395,-151.0,0.00022089,7]
[391156978,1760401846406,-151.0,0.00022089,7]
[391156980,1760401846416,-151.0,0.00022089,7]
[391156982,1760401846425,-153.97463,0.00022089,7]
[391156984,1760401846434,-151.0,0.00022089,7]
[391156986,1760401846443,-151.0,0.00022089,7]
[391156988,1760401846452,-151.0,0.00022089,7]
[391156990,1760401846461,-151.00000003,0.00022089,7]
[391156992,1760401846470,-151.0,0.00022089,7]
[391156994,1760401846480,-151.0,0.00022089,7]
[391156996,1760401846488,-151.0,0.00022089,7]
[391156998,1760401846497,-151.0,0.00022089,7]
[391157000,1760401846507,-151.0,0.00022089,7]
[391157002,1760401846516,-168.769384,0.00022089,7]
[391157004,1760401846525,-151.0,0.00022089,7]
[391157006,1760401846534,-151.0,0.00022089,7]
[391157007,1760401846542,-151.0,0.00022089,7]
[391157009,1760401846551,-151.0,0.00022089,7]
[391157011,1760401846561,-558.611961,0.00022089,7]
[391157013,1760401846570,-558.611961,0.00022089,7]
[391157015,1760401846579,-558.611961,0.00022089,7]
[391157017,1760401846588,-558.611961,0.00022089,7]
[391157019,1760401846597,-151.0,0.00022089,7]
[391157021,1760401846607,-273.873537,0.00022089,7]
[391157023,1760401846616,-151.0,0.00022089,7]
[391157025,1760401846625,-151.0,0.00022089,7]
[391157028,1760401846636,-151.0,0.00022089,7]
[391157029,1760401846645,-151.0,0.00022089,7]
[391157032,1760401846654,-151.0,0.00022089,7]
[391157033,1760401846664,-370000.0,0.00022089,2]
[391157035,1760401846673,-493.79,0.00022118,2]
[391157037,1760401846682,-500.0,0.00022173,2]
[391157039,1760401846692,-500.79678283,0.00022188,2]
[391157041,1760401846701,-481.54876736,0.00022188,2]
[391157043,1760401846710,-500.0,0.00022188,2]
[391157045,1760401846719,-500.0,0.00022188,2]
[391157047,1760401846728,-500.0,0.00022188,2]
[391157049,1760401846737,-383.08791147,0.00022188,2]
[391157051,1760401846746,-28113.76,0.000222,7]
[391157053,1760401846755,-151.0,0.000222,7]
[391157055,1760401846764,-151.0,0.000222,7]
[391157057,1760401846774,-214.9029164,0.00022266,2]
[391157059,1760401846782,-300.0,0.00022354,20]
[391157061,1760401846792,-300.0,0.00022354,20]
[391157063,1760401846801,-300.0,0.00022354,20]
[391157065,1760401846810,-300.0,0.00022354,20]
[391157067,1760401846819,-300.0,0.00022354,20]
[391157069,1760401846827,-300.0,0.00022354,20]
[391157070,1760401846836,-300.0,0.00022354,20]
[391157072,1760401846845,-300.0,0.00022354,20]
[391157074,1760401846854,-300.0,0.00022354,20]
[391157076,1760401846863,-300.0,0.00022354,20]
[391157078,1760401846872,-300.0,0.00022354,20]
[391157080,1760401846881,-300.0,0.00022354,20]
[391157082,1760401846891,-300.0,0.00022354,20]
[391157084,1760401846901,-300.0,0.00022354,20]
[391157086,1760401846910,-300.0,0.00022354,20]
[391157088,1760401846920,-600.0,0.00022437,20]
[391157090,1760401846929,-1000.0,0.00022521,2]
[391157092,1760401846938,-1000.0,0.00022521,2]
[391157094,1760401846947,-1000.0,0.00022521,2]
[391157096,1760401846956,-747.19281656,0.00022521,2]
[391157098,1760401846965,-500.0,0.00022521,2]
[391157100,1760401846975,-1000.0,0.00022521,2]
[391157102,1760401846984,-507.5090354,0.00022521,2]
[391157104,1760401846994,-503.79731406,0.00022521,2]
[391157106,1760401847002,-500.0,0.00022521,2]
[391157108,1760401847012,-1000.0,0.00022521,2]
[391157110,1760401847020,-1000.0,0.00022521,2]
[391157112,1760401847029,-500.0,0.00022521,2]
[391157114,1760401847040,-1000.0,0.00022621,2]
[391157116,1760401847049,-442.51102124,0.00022621,2]
[391157118,1760401847058,-1000.0,0.00022621,2]
[391157120,1760401847067,-1000.0,0.00022621,2]
[391157122,1760401847077,-1000.0,0.00022621,2]
[391157124,1760401847087,-1000.0,0.00022621,2]
[391157126,1760401847096,-1000.0,0.00022621,2]
[391157128,1760401847105,-1000.0,0.00022621,2]
[391157130,1760401847114,-629.36201742,0.00022721,2]
[391157132,1760401847124,-18603.8837,0.00022735,2]
[391157134,1760401847133,-239.69940675,0.00022866,2]
[391157136,1760401847143,-160.0,0.00023,2]
[391157138,1760401847153,-157.50122525,0.00023,3]
[391157140,1760401847161,-160.0,0.00023,2]
[391157142,1760401847173,-293.33214032,0.00023057,2]
[391157144,1760401847185,-1500.0,0.00023068,2]
[391157146,1760401847195,-513.72261937,0.00023068,2]
[391157148,1760401847205,-1500.0,0.00023068,2]
[391157149,1760401847214,-500.0,0.00023068,2]
[391157152,1760401847225,-1500.0,0.00023068,2]
[391157153,1760401847234,-1500.0,0.00023068,2]
[391157155,1760401847244,-658.39,0.0002308,2]
[391157165,1760401847334,-1500.0,0.00023168,2]
[391157167,1760401847345,-1500.0,0.00023168,2]
[391157169,1760401847354,-1500.0,0.00023168,2]
[391157171,1760401847363,-1500.0,0.00023168,2]
[391157173,1760401847372,-1006.198649,0.00023168,2]
[391157175,1760401847382,-1500.0,0.00023168,2]
[391157177,1760401847392,-1500.0,0.00023168,2]
[391157179,1760401847401,-500.0,0.00023208,2]
[391157181,1760401847410,-700.0,0.00023256,2]
[391157183,1760401847420,-19292.2273969,0.00023283,2]
[391157185,1760401847432,-306.01818501,0.00023404,5]
[391157187,1760401847441,-157.46,0.00023416,3]
[391157189,1760401847451,-264.4958971,0.00023466,2]
[391157191,1760401847460,-260.0,0.00023548,2]
[391157193,1760401847469,-500.0,0.00023616,2]
[391157195,1760401847478,-2000.0,0.00023616,2]
[391157197,1760401847487,-2000.0,0.00023616,2]
[391157199,1760401847496,-2000.0,0.00023616,2]
[391157201,1760401847504,-420.0,0.00023711,2]
[391157203,1760401847513,-2000.0,0.00023716,2]
[391157205,1760401847522,-2000.0,0.00023716,2]
[391157207,1760401847531,-505.46787646,0.00023716,2]
[391157209,1760401847540,-1734.49869312,0.00023716,2]
[391157211,1760401847549,-2000.0,0.00023716,2]
[391157213,1760401847559,-2000.0,0.00023716,2]
[391157215,1760401847568,-904.0,0.00023823,2]
[391157217,1760401847577,-713.81241369,0.00023831,2]
[391157219,1760401847587,-160.0,0.00023957,3]
[391157221,1760401847596,-151.0,0.00023976,7]
[391157223,1760401847605,-151.0,0.00023976,7]
[391157225,1760401847614,-5284.03202824,0.00024,60]
[391157227,1760401847624,-822.99,0.00024041,2]
[391157229,1760401847633,-289.29238746,0.00024066,2]
[391157231,1760401847643,-500.0,0.00024096,2]
[391157233,1760401847653,-15047.13906787,0.00024142,2]
[391157235,1760401847662,-511.58800229,0.00024164,2]
[391157237,1760401847671,-800.13544049,0.00024164,2]
[391157239,1760401847680,-2500.0,0.00024164,2]
[391157241,1760401847689,-562.0,0.00024187,2]
[391157243,1760401847699,-562.0,0.00024232,2]
[391157245,1760401847708,-372.65176127,0.00024264,2]
[391157247,1760401847717,-2500.0,0.00024264,2]
[391157249,1760401847726,-2500.0,0.00024264,2]
[391157251,1760401847735,-1500.0,0.00024264,2]
[391157253,1760401847744,-392.0841244,0.00024293,2]
[391157255,1760401847753,-392.0841244,0.00024293,2]
[391157257,1760401847763,-293.33214032,0.00024296,2]
[391157259,1760401847772,-700.0,0.00024352,2]
[391157261,1760401847781,-1093.0,0.00024407,2]
[391157263,1760401847791,-500.0,0.00024429,2]
[391157265,1760401847800,-562.0,0.0002449,2]
[391157267,1760401847809,-160.0,0.00024518,4]
[391157269,1760401847819,-1093.0,0.00024528,2]
[391157271,1760401847828,-157.46,0.0002456,3]
[391157273,1760401847838,-1093.0,0.00024576,2]
[391157275,1760401847847,-800.0,0.00024597,2]
[391157277,1760401847857,-800.0,0.00024598,2]
[391157279,1760401847867,-314.92,0.000246,3]
[391157281,1760401847876,-800.0,0.00024607,2]
[391157283,1760401847885,-218.0,0.0002461,2]
[391157285,1760401847895,-196.788,0.00024614,7]
[391157287,1760401847904,-1500.0,0.00024657,8]
[391157289,1760401847913,-800.0,0.00024658,2]
[391157291,1760401847922,-314.08887781,0.00024666,2]
[391157293,1760401847932,-1093.0,0.00024676,2]
[391157295,1760401847941,-720.0,0.00024681,20]
[391157297,1760401847950,-610.38801553,0.00024699,2]
[391157299,1760401847959,-2439.11051007,0.00024699,2]
[391157301,1760401847968,-800.0,0.00024706,2]
[391157303,1760401847977,-800.0,0.00024706,2]
[391157305,1760401847986,-2778.28269018,0.00024708,2]
[391157307,1760401847996,-697.34895524,0.00024708,2]
[391157309,1760401848006,-3000.0,0.00024712,2]
[391157311,1760401848015,-800.0,0.00024724,2]
[391157313,1760401848024,-800.0,0.00024726,2]
[391157314,1760401848033,-800.0,0.00024747,2]
[391157315,1760401848041,-800.0,0.00024783,2]
[391157316,1760401848050,-200.0,0.00024785,2]
[391157317,1760401848060,-2625.6609725,0.00024788,2]
[391157318,1760401848068,-3000.0,0.000248,2]
[391157319,1760401848077,-277.0,0.000248,2]
[391157320,1760401848086,-151.0,0.000248,7]
[391157321,1760401848095,-151.0,0.000248,7]
[391157322,1760401848104,-151.940077,0.000248,7]
[391157323,1760401848114,-151.0,0.000248,7]
[391157324,1760401848124,-151.0,0.000248,7]
[391157325,1760401848133,-151.0,0.000248,7]
[391157326,1760401848142,-151.0,0.000248,7]
[391157327,1760401848152,-151.0,0.000248,7]
[391157328,1760401848162,-151.0,0.000248,7]
[391157329,1760401848171,-151.0,0.000248,7]
[391157330,1760401848181,-151.0,0.000248,7]
[391157332,1760401848199,-151.0,0.000248,7]
[391157334,1760401848208,-152.947109,0.000248,2]
[391157336,1760401848220,-151.0,0.000248,7]
[391157338,1760401848230,-151.0,0.000248,7]
[391157340,1760401848239,-150.0,0.000248,10]
[391157342,1760401848248,-301.99999986,0.000248,7]
[391157344,1760401848259,-7801.01058852,0.000248,2]
[391157346,1760401848269,-151.0,0.000248,7]
[391157348,1760401848278,-301.3414716,0.000248,7]
[391157350,1760401848288,-151.0,0.000248,7]
[391157352,1760401848298,-151.0,0.000248,7]
[391157354,1760401848306,-151.0,0.000248,7]
[391157356,1760401848315,-151.0,0.000248,7]
[391157358,1760401848325,-151.0,0.000248,7]
[391157360,1760401848334,-151.0,0.000248,7]
[391157362,1760401848343,-70426.1282854,0.000248,2]
[391157364,1760401848352,-151.0,0.000248,7]
[391157366,1760401848361,-151.0,0.000248,7]
[391157368,1760401848370,-151.0,0.000248,7]
[391157370,1760401848379,-151.0,0.000248,7]
[391157372,1760401848388,-209.108725,0.000248,7]
[391157374,1760401848397,-151.0,0.000248,7]
[391157376,1760401848406,-558.611961,0.000248,7]
[391157378,1760401848415,-558.611961,0.000248,7]
[391157380,1760401848423,-558.611961,0.000248,7]
[391157381,1760401848432,-558.611961,0.000248,7]
[391157382,1760401848441,-151.0,0.000248,7]
[391157383,1760401848450,-151.0,0.000248,7]
[391157384,1760401848459,-151.0,0.000248,7]
[391157385,1760401848469,-287.201148,0.000248,7]
[391157386,1760401848478,-151.0,0.000248,7]
[391157387,1760401848487,-981.0,0.00024803,2]
[391157388,1760401848496,-411.0,0.00024803,2]
[391157389,1760401848505,-416.952,0.00024803,2]
[391157390,1760401848514,-3000.0,0.0002481,2]
[391157391,1760401848523,-1737.83368408,0.00024812,2]
[391157392,1760401848532,-1506.85177544,0.00024812,2]
[391157393,1760401848541,-800.0,0.00024816,2]
[391157394,1760401848550,-800.0,0.00024817,2]
[391157395,1760401848559,-3000.0,0.0002482,2]
[391157396,1760401848568,-800.0,0.00024821,2]
[391157397,1760401848577,-218.0,0.00024825,2]
[391157398,1760401848586,-3000.0,0.0002483,2]
[391157399,1760401848595,-600.0,0.00024839,2]
[391157400,1760401848604,-3000.0,0.0002484,2]
[391157401,1760401848614,-3000.0,0.0002485,2]
[391157402,1760401848623,-224.58259166,0.00024859,2]
[391157403,1760401848708,-325.76237576,0.00024859,2]
[391157404,1760401848748,-506.6331369,0.00021917,2]
[391157405,1760401848757,-631.0,0.00024504,2]
[391157406,1760401848766,-249.65503258,0.00024859,2]
[391157407,1760401848775,-3000.0,0.0002486,2]
[391157408,1760401848785,-3000.0,0.0002487,2]
[391157409,1760401848794,-500.0,0.00024873,2]
[391157410,1760401848802,-500.0,0.00024873,2]
[391157411,1760401848811,-500.0,0.00024873,2]
[391157412,1760401848820,-500.0,0.00024873,2]
[391157413,1760401848829,-500.0,0.00024873,2]
[391157414,1760401848838,-500.0,0.00024873,2]
[391157415,1760401848847,-500.54664894,0.00024873,2]
[391157416,1760401848856,-500.0,0.00024873,2]
[391157417,1760401848866,-421.49879402,0.00024873,2]
[391157418,1760401848875,-500.0,0.00024873,2]
[391157419,1760401848884,-536.44706305,0.00024873,2]
[391157420,1760401848893,-634.87926624,0.00024873,2]
[391157421,1760401848902,-500.0,0.00024873,2]
[391157422,1760401848911,-500.85016941,0.00024873,2]
[391157423,1760401848920,-501.50904428,0.00024873,2]
[391157424,1760401848930,-500.30925585,0.00024873,2]
[391157425,1760401848939,-501.143977,0.00024873,2]
[391157426,1760401848948,-500.0,0.00024873,2]
[391157427,1760401848956,-501.21425316,0.00024873,2]
[391157428,1760401848965,-503.19052823,0.00024873,2]
[391157429,1760401848974,-500.0,0.00024873,2]
[391157430,1760401848984,-500.0,0.00024873,2]
[391157431,1760401848993,-500.0,0.00024873,2]
[391157432,1760401849002,-500.0,0.00024873,2]
[391157433,1760401849010,-416.88583763,0.00024873,2]
[391157434,1760401849020,-501.04937983,0.00024873,2]
[391157435,1760401849029,-500.0,0.00024873,2]
[391157436,1760401849039,-500.0,0.00024873,2]
[391157437,1760401849050,-502.40693998,0.00024873,2]
[391157438,1760401849135,-500.0,0.00024873,2]
[391157439,1760401849146,-500.0,0.00024873,2]
[391157440,1760401849155,-500.0,0.00024873,2]
[391157441,1760401849164,-644.66218255,0.00024873,2]
[391157442,1760401849174,-500.0,0.00024873,2]
[391157443,1760401849186,-300.27351339,0.00024873,2]
[391157444,1760401849195,-500.0,0.00024873,2]
[391157445,1760401849204,-501.01184369,0.00024873,2]
[391157446,1760401849213,-523.98417731,0.00024873,2]
[391157447,1760401849223,-547.17996457,0.00024873,2]
[391157448,1760401849232,-500.0,0.00024873,2]
[391157449,1760401849241,-501.23477537,0.00024873,2]
[391157450,1760401849250,-300.81001478,0.00024873,2]
[391157451,1760401849260,-500.0,0.00024873,2]
[391157452,1760401849269,-501.13979543,0.00024873,2]
[391157453,1760401849279,-501.58516663,0.00024873,2]
[391157454,1760401849288,-500.0,0.00024873,2]
[391157455,1760401849298,-501.37217823,0.00024873,2]
[391157456,1760401849308,-500.0,0.00024873,2]
[391157457,1760401849316,-151.0,0.00024873,7]
[391157458,1760401849326,-1000.0,0.00024875,2]
[391157459,1760401849335,-1000.0,0.00024875,2]
[391157460,1760401849345,-680.9639,0.00024875,2]
[391157461,1760401849354,-3000.0,0.0002488,2]
[391157462,1760401849363,-3000.0,0.0002489,2]
[391157463,1760401849372,-1093.0,0.00024895,2]
[391157464,1760401849381,-3000.0,0.000249,2]
[391157465,1760401849391,-151.0,0.000249,7]
[391157466,1760401849400,-151.0,0.000249,7]
[391157467,1760401849409,-151.0,0.000249,7]
[391157468,1760401849418,-174.074912,0.000249,7]
[391157469,1760401849427,-151.0,0.000249,7]
[391157470,1760401849436,-229.860945,0.000249,7]
[391157471,1760401849445,-151.0,0.000249,7]
[391157472,1760401849454,-151.0,0.000249,7]
[391157473,1760401849463,-151.0,0.000249,7]
[391157474,1760401849472,-151.0,0.000249,7]
[391157475,1760401849481,-559.89575188,0.000249,2]
[391157476,1760401849491,-151.0,0.000249,7]
[391157477,1760401849500,-151.0,0.000249,7]
[391157478,1760401849509,-151.0,0.000249,7]
[391157479,1760401849518,-151.0,0.000249,7]
[391157480,1760401849528,-1000.0,0.000249,2]
[391157481,1760401849537,-1000.0,0.000249,2]
[391157482,1760401849547,-1000.0,0.000249,2]
[391157483,1760401849556,-1000.0,0.000249,2]
[391157484,1760401849565,-1000.0,0.000249,2]
[391157485,1760401849575,-1000.0,0.000249,2]
[391157486,1760401849589,-1000.0,0.000249,2]
[391157487,1760401849618,-1000.0,0.000249,2]
[391157488,1760401849627,-1069.060069,0.000249,2]
[391157489,1760401849638,-97075.2759835,0.000249,2]
[391157490,1760401849687,-494.3173247,0.00022,2]
[391157491,1760401849698,-288.7925036,0.00022,2]
[391157492,1760401849706,-385.78749644,0.000249,2]
[391157493,1760401849717,-372.9242503,0.000249,2]
[391157494,1760401849728,-11105.11398774,0.000249,2]
[391157495,1760401849738,-1417.08076274,0.000249,2]
[391157606,1760401997415,150.0,0.00020114,2]
[391157607,1760402010010,53034.416598,0.0002,2]
[391157608,1760402022927,7785.09100533,0.0002,2]
[391157609,1760402077308,150.12,0.00020081,2]
[391157610,1760402133524,1671.99,0.00029,120]
[391157615,1760402194162,1520350.35089924,0.00030599,60]
[391157617,1760402232445,150.0,0.00020087,2]
[391157620,1760402308506,150.0,0.00020098,2]
[391157621,1760402332805,800.0,0.0002,30]
[391157622,1760402388341,150.0,0.00020165,2]
[391157623,1760402467045,150.0,0.00020136,2]
[391157627,1760402547880,150.0,0.00020087,2]
[391157631,1760402593258,163.0,0.000209,2]
[391157632,1760402595526,163.0,0.000209,2]
[391157633,1760402622275,163.0,0.00029,120]
[391157634,1760402623170,163.0,0.00029,120]
[391157635,1760402629255,150.0,0.00020086,2]
[391157636,1760402636290,164.70965249,0.00029,120]
[391157637,1760402709639,150.0,0.00020092,2]
[391157638,1760402787972,150.0,0.00020124,2]
[391157639,1760402866752,150.0,0.00020085,2]
[391157640,1760402961573,150.0,0.0002015,2]
[391157641,1760403001891,300.0,0.00020972,2]
[391157642,1760403002474,300.0,0.00020972,2]
[391157643,1760403002522,300.0,0.00020972,2]
[391157644,1760403002603,300.0,0.00020972,2]
[391157645,1760403004486,1200.0,0.00020972,2]
[391157682,1760403032257,-500.0,0.00020973,2]
[391157684,1760403032266,-500.0,0.00020973,2]
[391157686,1760403032275,-500.0,0.00020973,2]
[391157688,1760403032284,-500.0,0.00020973,2]
[391157690,1760403032293,-176.25598569,0.00020973,2]
[391157692,1760403032302,-1200.0,0.00021054,2]
[391157694,1760403032311,-552.0,0.00021055,2]
[391157696,1760403032320,-262.05,0.0002111,2]
[391157698,1760403032329,-202.69438354,0.00021573,2]
[391157700,1760403032338,-41123.94299074,0.00021817,2]
[391157702,1760403032347,-9075.23473814,0.00021817,2]
[391157704,1760403032356,-5073.43414574,0.00021817,2]
[391157706,1760403032366,-151.0,0.000219,3]
[391157708,1760403032375,-382.95,0.00021904,10]
[391157710,1760403032385,-597.91,0.00021905,10]
[391157712,1760403032394,-305.0,0.00021906,2]
[391157714,1760403032403,-416.826,0.00021907,2]
[391157716,1760403032412,-1529.62,0.00021907,3]
[391157718,1760403032421,-1274.68,0.00021907,3]
[391157720,1760403032430,-637.34,0.00021907,3]
[391157723,1760403032439,-318.67,0.00021907,3]
[391157725,1760403032448,-159.34,0.00021907,3]
[391157728,1760403032458,-498.25,0.00021907,10]
[391157730,1760403032467,-478.04,0.00021907,3]
[391157732,1760403032476,-415.21,0.00021907,10]
[391157734,1760403032485,-500.0,0.00021914,2]
[391157736,1760403032494,-500.0,0.00021914,2]
[391157738,1760403032503,-500.0,0.00021914,2]
[391157740,1760403032512,-500.0,0.00021914,2]
[391157742,1760403032520,-500.0,0.00021914,2]
[391157744,1760403032530,-500.0,0.00021914,2]
[391157746,1760403032539,-500.0,0.00021914,2]
[391157748,1760403032548,-500.0,0.00021914,2]
[391157750,1760403032557,-500.0,0.00021914,2]
[391157752,1760403032566,-500.0,0.00021914,2]
[391157754,1760403032576,-500.0,0.00021914,2]